[Event "*** SCC Grand Prix: Titled Tuesday Blitz"]
[Site "Chess.com"]
[Date "2020.09.29"]
[Round "2"]
[White "daro94"]
[Black "Gusarov91"]
[Result "1/2-1/2"]
[WhiteElo "2940"]
[BlackElo "2593"]
[TimeControl "180+1"]
[EndTime "10:18:14 PDT"]
[Termination "Game drawn by repetition"]

1. c4 {[%clk 0:03:00.9]} 1... Nf6 {[%clk 0:02:57.8]} 2. g3 {[%clk 0:03:00.2]}
2... g6 {[%clk 0:02:58.2]} 3. Bg2 {[%clk 0:03:00.3]} 3... Bg7 {[%clk 0:02:59.1]}
4. Nc3 {[%clk 0:03:00.1]} 4... O-O {[%clk 0:03:00]} 5. Nf3 {[%clk 0:02:58.2]}
5... c5 {[%clk 0:03:00.5]} 6. O-O {[%clk 0:02:57.9]} 6... Nc6 {[%clk 0:03:00.8]}
7. d4 {[%clk 0:02:56.4]} 7... cxd4 {[%clk 0:03:01]} 8. Nxd4 {[%clk 0:02:57.3]}
8... Nxd4 {[%clk 0:03:01.7]} 9. Qxd4 {[%clk 0:02:56.3]} 9... d6 {[%clk
0:03:02.6]} 10. Qd3 {[%clk 0:02:52.1]} 10... Qa5 {[%clk 0:03:02.2]} 11. Bd2
{[%clk 0:02:52.1]} 11... Bf5 {[%clk 0:03:01.4]} 12. e4 {[%clk 0:02:50.4]} 12...
Be6 {[%clk 0:03:00.5]} 13. Nd5 {[%clk 0:02:46.6]} 13... Qd8 {[%clk 0:03:00.4]}
14. Rfe1 {[%clk 0:02:40.5]} 14... Nd7 {[%clk 0:02:58.5]} 15. Bc3 {[%clk
0:02:39.8]} 15... Nc5 {[%clk 0:02:58.5]} 16. Qd2 {[%clk 0:02:38.2]} 16... Bxc3
{[%clk 0:02:54]} 17. Qxc3 {[%clk 0:02:37]} 17... Bxd5 {[%clk 0:02:54.2]} 18.
exd5 {[%clk 0:02:36.8]} 18... a5 {[%clk 0:02:53.9]} 19. Re3 {[%clk 0:02:36]}
19... b6 {[%clk 0:02:51.8]} 20. Rae1 {[%clk 0:02:36.4]} 20... Ra7 {[%clk
0:02:52.4]} 21. h4 {[%clk 0:02:35.8]} 21... f6 {[%clk 0:02:43.5]} 22. b3 {[%clk
0:02:29.9]} 22... Rf7 {[%clk 0:02:41.9]} 23. Bh3 {[%clk 0:02:29.4]} 23... f5
{[%clk 0:02:39.5]} 24. f4 {[%clk 0:02:25]} 24... Qf8 {[%clk 0:02:39.4]} 25. Kh2
{[%clk 0:02:23.5]} 25... Qg7 {[%clk 0:02:39.4]} 26. Qc2 {[%clk 0:02:22.2]} 26...
h5 {[%clk 0:02:38]} 27. R1e2 {[%clk 0:02:14.9]} 27... Qa1 {[%clk 0:02:36.4]} 28.
Re1 {[%clk 0:02:11.8]} 28... Qd4 {[%clk 0:02:35]} 29. Bg2 {[%clk 0:02:08]} 29...
Kh7 {[%clk 0:02:30]} 30. Bf3 {[%clk 0:01:48.9]} 30... Rg7 {[%clk 0:02:20.9]} 31.
Qe2 {[%clk 0:01:46.4]} 31... Qf6 {[%clk 0:02:15.2]} 32. Qd2 {[%clk 0:01:36.1]}
32... Kg8 {[%clk 0:02:14.3]} 33. Bg2 {[%clk 0:01:26.7]} 33... Kf8 {[%clk
0:02:13.8]} 34. Qf2 {[%clk 0:01:21.7]} 34... Rb7 {[%clk 0:02:04.7]} 35. a3
{[%clk 0:01:17.6]} 35... Ra7 {[%clk 0:02:03]} 36. b4 {[%clk 0:01:17]} 36... axb4
{[%clk 0:02:01.7]} 37. axb4 {[%clk 0:01:17.9]} 37... Nd7 {[%clk 0:01:51.5]} 38.
Re6 {[%clk 0:01:16.2]} 38... Qc3 {[%clk 0:01:51.5]} 39. Bf1 {[%clk 0:00:15.6]}
39... Nf6 {[%clk 0:01:47.4]} 40. Kg2 {[%clk 0:00:06.5]} 40... Qxb4 {[%clk
0:01:44.8]} 41. Qe2 {[%clk 0:00:03.4]} 41... Qb3 {[%clk 0:01:38.7]} 42. Rxf6+
{[%clk 0:00:03.6]} 42... Kg8 {[%clk 0:01:37.8]} 43. Qe6+ {[%clk 0:00:02.9]}
43... Kh7 {[%clk 0:01:32.9]} 44. Rf7 {[%clk 0:00:03.5]} 44... Ra2+ {[%clk
0:01:32.6]} 45. Re2 {[%clk 0:00:03.4]} 45... Qxc4 {[%clk 0:01:22]} 46. Rxg7+
{[%clk 0:00:03.4]} 46... Kxg7 {[%clk 0:01:22.1]} 47. Qxe7+ {[%clk 0:00:03.9]}
47... Kh6 {[%clk 0:01:22]} 48. Qf8+ {[%clk 0:00:04.1]} 48... Kh7 {[%clk
0:01:22.1]} 49. Qe7+ {[%clk 0:00:04.5]} 49... Kh6 {[%clk 0:01:22.3]} 50. Rxa2
{[%clk 0:00:02.4]} 50... Qxd5+ {[%clk 0:01:20.6]} 51. Kg1 {[%clk 0:00:03]} 51...
Qxa2 {[%clk 0:01:20.5]} 52. Qxd6 {[%clk 0:00:03.6]} 52... Qb2 {[%clk 0:01:19.4]}
53. Qd3 {[%clk 0:00:04.5]} 53... Qf6 {[%clk 0:01:17.6]} 54. Be2 {[%clk
0:00:04.9]} 54... Qc6 {[%clk 0:01:16.7]} 55. Kf2 {[%clk 0:00:05.1]} 55... Qc5+
{[%clk 0:01:16.2]} 56. Qe3 {[%clk 0:00:05.7]} 56... Qc6 {[%clk 0:01:15.8]} 57.
Qe5 {[%clk 0:00:06]} 57... Kh7 {[%clk 0:01:14.5]} 58. Qb5 {[%clk 0:00:06.3]}
58... Qd6 {[%clk 0:01:13.1]} 59. Qd3 {[%clk 0:00:07]} 59... Qc5+ {[%clk
0:01:13.3]} 60. Qe3 {[%clk 0:00:07.6]} 60... Qc6 {[%clk 0:01:13.3]} 61. Qe7+
{[%clk 0:00:07.8]} 61... Kh6 {[%clk 0:01:12.2]} 62. Qe5 {[%clk 0:00:08.1]} 62...
Kh7 {[%clk 0:01:11.9]} 63. Bf3 {[%clk 0:00:08.6]} 63... Qc2+ {[%clk 0:01:11.3]}
64. Kg1 {[%clk 0:00:09]} 64... Qc1+ {[%clk 0:01:11.1]} 65. Kg2 {[%clk
0:00:09.5]} 65... Qc2+ {[%clk 0:01:11.4]} 66. Kh3 {[%clk 0:00:09.8]} 66... Qb1
{[%clk 0:01:09.3]} 67. Bd5 {[%clk 0:00:06.7]} 67... Qf1+ {[%clk 0:01:08.3]} 68.
Bg2 {[%clk 0:00:07.3]} 68... Qb1 {[%clk 0:01:08.4]} 69. Qc7+ {[%clk 0:00:07.4]}
69... Kh6 {[%clk 0:01:07.1]} 70. Qd8 {[%clk 0:00:07.4]} 70... Kh7 {[%clk
0:01:07.3]} 71. Qc7+ {[%clk 0:00:05.3]} 71... Kh6 {[%clk 0:01:07.4]} 72. Qb8
{[%clk 0:00:06.2]} 72... Kh7 {[%clk 0:01:07.5]} 73. Qb7+ {[%clk 0:00:06.7]}
73... Kh6 {[%clk 0:01:07.5]} 74. Qa8 {[%clk 0:00:07.6]} 74... Kh7 {[%clk
0:01:07.4]} 75. Qa7+ {[%clk 0:00:08]} 75... Kh6 {[%clk 0:01:07.6]} 76. Qa4
{[%clk 0:00:07.7]} 76... b5 {[%clk 0:01:06.6]} 77. Qd4 {[%clk 0:00:07.9]} 77...
Kh7 {[%clk 0:01:06.4]} 78. Bd5 {[%clk 0:00:07.2]} 78... Qf1+ {[%clk 0:01:05.2]}
79. Kh2 {[%clk 0:00:07.5]} 79... Qe2+ {[%clk 0:01:05.5]} 80. Kh3 {[%clk
0:00:07.2]} 80... Qf1+ {[%clk 0:01:05.8]} 81. Bg2 {[%clk 0:00:07.8]} 81... Qb1
{[%clk 0:01:04.1]} 82. Qd7+ {[%clk 0:00:06.8]} 82... Kh6 {[%clk 0:01:03.8]} 83.
Qd8 {[%clk 0:00:06.8]} 83... Kh7 {[%clk 0:01:04.2]} 84. Qc7+ {[%clk 0:00:07]}
84... Kh6 {[%clk 0:01:04.5]} 85. Qb8 {[%clk 0:00:07]} 85... Kh7 {[%clk
0:01:04.7]} 86. Qb7+ {[%clk 0:00:07.8]} 86... Kh6 {[%clk 0:01:04.9]} 87. Qa8
{[%clk 0:00:08.5]} 87... Kh7 {[%clk 0:01:05.2]} 88. Qa7+ {[%clk 0:00:09.1]}
88... Kh6 {[%clk 0:01:05.5]} 89. Qd4 {[%clk 0:00:06.5]} 89... Kh7 {[%clk
0:01:05.3]} 1/2-1/2

[Event "*** SCC Grand Prix: Titled Tuesday Blitz"]
[Site "Chess.com"]
[Date "2020.09.29"]
[Round "2"]
[White "Grieve72"]
[Black "PauloCesarCosta_sad"]
[Result "1/2-1/2"]
[WhiteElo "2454"]
[BlackElo "2303"]
[TimeControl "180+1"]
[EndTime "10:18:20 PDT"]
[Termination "Game drawn by repetition"]

1. e4 {[%clk 0:03:00.9]} 1... e6 {[%clk 0:02:59.9]} 2. d4 {[%clk 0:03:00.9]}
2... d5 {[%clk 0:03:00.5]} 3. Nd2 {[%clk 0:03:01.1]} 3... Nf6 {[%clk 0:03:00.2]}
4. e5 {[%clk 0:03:01.3]} 4... Nfd7 {[%clk 0:03:00.8]} 5. Bd3 {[%clk 0:03:01.9]}
5... c5 {[%clk 0:03:01.1]} 6. c3 {[%clk 0:03:02.6]} 6... Nc6 {[%clk 0:03:01.5]}
7. Ne2 {[%clk 0:03:03.3]} 7... Qb6 {[%clk 0:03:01.9]} 8. Nf3 {[%clk 0:03:02.6]}
8... cxd4 {[%clk 0:03:01.6]} 9. cxd4 {[%clk 0:03:03.5]} 9... f6 {[%clk 0:03:02]}
10. exf6 {[%clk 0:03:01.4]} 10... Nxf6 {[%clk 0:03:02.9]} 11. O-O {[%clk
0:02:58.5]} 11... Bd6 {[%clk 0:03:03]} 12. Nc3 {[%clk 0:02:49.1]} 12... O-O
{[%clk 0:02:49.1]} 13. h3 {[%clk 0:02:37.5]} 13... Bd7 {[%clk 0:02:20]} 14. Na4
{[%clk 0:02:35.7]} 14... Qc7 {[%clk 0:02:13.9]} 15. Re1 {[%clk 0:02:35.8]} 15...
Rae8 {[%clk 0:02:13.8]} 16. Bg5 {[%clk 0:02:08.8]} 16... e5 {[%clk 0:02:06.7]}
17. dxe5 {[%clk 0:02:08.8]} 17... Nxe5 {[%clk 0:02:05.3]} 18. Nxe5 {[%clk
0:02:08]} 18... Bxe5 {[%clk 0:02:02.1]} 19. Qb3 {[%clk 0:02:03.9]} 19... Bc6
{[%clk 0:01:55.1]} 20. Nc5 {[%clk 0:01:51.8]} 20... Qb6 {[%clk 0:01:47.8]} 21.
Qxb6 {[%clk 0:01:20.8]} 21... axb6 {[%clk 0:01:48.7]} 22. Nb3 {[%clk 0:01:19.6]}
22... Bxb2 {[%clk 0:01:43.3]} 23. Rab1 {[%clk 0:01:19.5]} 23... Bc3 {[%clk
0:01:34.8]} 24. Rec1 {[%clk 0:01:16.9]} 24... d4 {[%clk 0:01:27]} 25. Bd2 {[%clk
0:00:50.8]} 25... Be4 {[%clk 0:01:20.1]} 26. Bxe4 {[%clk 0:00:35]} 26... Nxe4
{[%clk 0:01:19.9]} 27. Bxc3 {[%clk 0:00:34.7]} 27... Nxc3 {[%clk 0:01:07.9]} 28.
Nxd4 {[%clk 0:00:25.5]} 28... Nxb1 {[%clk 0:01:07.6]} 29. Rxb1 {[%clk
0:00:26.4]} 29... Re4 {[%clk 0:00:59.5]} 30. Nf3 {[%clk 0:00:17.8]} 30... Ra8
{[%clk 0:00:50.7]} 31. Rxb6 {[%clk 0:00:15.6]} 31... Ra7 {[%clk 0:00:43.5]} 32.
Rd6 {[%clk 0:00:12]} 32... Rxa2 {[%clk 0:00:37.7]} 33. Rd8+ {[%clk 0:00:07.8]}
33... Kf7 {[%clk 0:00:31.1]} 34. Ng5+ {[%clk 0:00:07.5]} 34... Ke7 {[%clk
0:00:31.4]} 35. Rg8 {[%clk 0:00:04.3]} 35... Re1+ {[%clk 0:00:30.5]} 36. Kh2
{[%clk 0:00:04.3]} 36... Kf6 {[%clk 0:00:24.2]} 37. Nxh7+ {[%clk 0:00:03.4]}
37... Kf7 {[%clk 0:00:22.9]} 38. Rb8 {[%clk 0:00:03.6]} 38... Re7 {[%clk
0:00:17]} 39. Ng5+ {[%clk 0:00:03.2]} 39... Kg6 {[%clk 0:00:15.9]} 40. Nf3
{[%clk 0:00:03.5]} 40... Rxf2 {[%clk 0:00:14.1]} 41. Kg3 {[%clk 0:00:04]} 41...
Rb2 {[%clk 0:00:13.1]} 42. Kf4 {[%clk 0:00:04.5]} 42... b5 {[%clk 0:00:12.4]}
43. Ne5+ {[%clk 0:00:04]} 43... Rxe5 {[%clk 0:00:07.1]} 44. Kxe5 {[%clk
0:00:03.4]} 44... Rxg2 {[%clk 0:00:07.6]} 45. Rb6+ {[%clk 0:00:02.2]} 45... Kh7
{[%clk 0:00:07.2]} 46. Kf4 {[%clk 0:00:02.3]} 46... Rh2 {[%clk 0:00:05.7]} 47.
Rxb5 {[%clk 0:00:01.6]} 47... Rxh3 {[%clk 0:00:05.4]} 48. Kg4 {[%clk 0:00:02.5]}
48... Rc3 {[%clk 0:00:04.9]} 49. Rb6 {[%clk 0:00:03.4]} 49... Rc7 {[%clk
0:00:04.9]} 50. Rb5 {[%clk 0:00:03.5]} 50... Ra7 {[%clk 0:00:05.1]} 51. Rb6
{[%clk 0:00:03.5]} 51... Ra5 {[%clk 0:00:05]} 52. Kh4 {[%clk 0:00:03.5]} 52...
g6 {[%clk 0:00:04.8]} 53. Kg4 {[%clk 0:00:04]} 53... Kh6 {[%clk 0:00:04.6]} 54.
Kh4 {[%clk 0:00:04.6]} 54... Ra4+ {[%clk 0:00:05]} 55. Kh3 {[%clk 0:00:05.1]}
55... Kg5 {[%clk 0:00:05]} 56. Rb5+ {[%clk 0:00:05.5]} 56... Kh6 {[%clk
0:00:05]} 57. Rc5 {[%clk 0:00:05.5]} 57... Kh7 {[%clk 0:00:04.8]} 58. Rc6 {[%clk
0:00:05.4]} 58... Ra3+ {[%clk 0:00:05.2]} 59. Kh4 {[%clk 0:00:05.1]} 59... Ra4+
{[%clk 0:00:05.7]} 60. Kg5 {[%clk 0:00:05.6]} 60... Ra5+ {[%clk 0:00:06]} 61.
Kg4 {[%clk 0:00:06.2]} 61... Ra4+ {[%clk 0:00:06]} 62. Kg5 {[%clk 0:00:06.5]}
62... Ra5+ {[%clk 0:00:06.6]} 63. Kg4 {[%clk 0:00:07]} 63... Ra4+ {[%clk
0:00:07]} 64. Kg5 {[%clk 0:00:07.4]} 1/2-1/2

[Event "*** SCC Grand Prix: Titled Tuesday Blitz"]
[Site "Chess.com"]
[Date "2020.09.29"]
[Round "2"]
[White "Forantes"]
[Black "DarZay"]
[Result "1-0"]
[WhiteElo "2378"]
[BlackElo "2055"]
[TimeControl "180+1"]
[EndTime "10:18:20 PDT"]
[Termination "Forantes won on time"]

1. Nf3 {[%clk 0:03:00.9]} 1... Nf6 {[%clk 0:02:55.5]} 2. g3 {[%clk 0:03:00.9]}
2... d5 {[%clk 0:02:54.7]} 3. Bg2 {[%clk 0:03:00.7]} 3... g6 {[%clk 0:02:53.2]}
4. O-O {[%clk 0:02:57.2]} 4... Bg7 {[%clk 0:02:53.2]} 5. d4 {[%clk 0:02:55.8]}
5... O-O {[%clk 0:02:52.5]} 6. c4 {[%clk 0:02:55.8]} 6... dxc4 {[%clk
0:02:41.7]} 7. Na3 {[%clk 0:02:55.2]} 7... c6 {[%clk 0:02:34.1]} 8. Nxc4 {[%clk
0:02:54.7]} 8... b5 {[%clk 0:02:34.1]} 9. Ncd2 {[%clk 0:02:40]} 9... Bb7 {[%clk
0:02:31.9]} 10. Nb3 {[%clk 0:02:39.6]} 10... Nbd7 {[%clk 0:02:27.9]} 11. Bf4
{[%clk 0:02:34.7]} 11... Qb6 {[%clk 0:02:26.2]} 12. Rc1 {[%clk 0:02:33.8]} 12...
a5 {[%clk 0:02:24.2]} 13. Ne5 {[%clk 0:02:24.5]} 13... Rfd8 {[%clk 0:02:17.7]}
14. Nxc6 {[%clk 0:02:19.6]} 14... Re8 {[%clk 0:02:04.8]} 15. d5 {[%clk
0:02:07.4]} 15... e5 {[%clk 0:01:56.5]} 16. Be3 {[%clk 0:01:56.2]} 16... Qa6
{[%clk 0:01:56.3]} 17. Nc5 {[%clk 0:01:54.8]} 17... Nxc5 {[%clk 0:01:55.8]} 18.
Bxc5 {[%clk 0:01:55.7]} 18... Bxc6 {[%clk 0:01:53.3]} 19. dxc6 {[%clk
0:01:55.6]} 19... Rad8 {[%clk 0:01:48.7]} 20. Qc2 {[%clk 0:01:39.5]} 20... e4
{[%clk 0:01:47.9]} 21. c7 {[%clk 0:01:31.3]} 21... Rc8 {[%clk 0:01:47.5]} 22.
Bd4 {[%clk 0:01:30.8]} 22... Nd5 {[%clk 0:01:33.6]} 23. Bxg7 {[%clk 0:01:20.6]}
23... Kxg7 {[%clk 0:01:33]} 24. Bxe4 {[%clk 0:01:07]} 24... Rxc7 {[%clk
0:01:28.1]} 25. Qd3 {[%clk 0:01:05]} 25... Rxc1 {[%clk 0:01:19.5]} 26. Rxc1
{[%clk 0:01:05.9]} 26... Nb4 {[%clk 0:01:19.5]} 27. Qd4+ {[%clk 0:00:46.2]}
27... Qf6 {[%clk 0:01:19.3]} 28. Qxf6+ {[%clk 0:00:45.8]} 28... Kxf6 {[%clk
0:01:19.3]} 29. Bf3 {[%clk 0:00:46.5]} 29... Nxa2 {[%clk 0:00:58]} 30. Ra1
{[%clk 0:00:46.5]} 30... Nb4 {[%clk 0:00:57.3]} 31. Rxa5 {[%clk 0:00:47]} 31...
Re5 {[%clk 0:00:51.9]} 32. Ra7 {[%clk 0:00:31]} 32... Nc2 {[%clk 0:00:49.2]} 33.
e3 {[%clk 0:00:27.1]} 33... h5 {[%clk 0:00:35.7]} 34. Rc7 {[%clk 0:00:20.6]}
34... Nb4 {[%clk 0:00:33.7]} 35. Be2 {[%clk 0:00:15.4]} 35... Na2 {[%clk
0:00:25.5]} 36. Rb7 {[%clk 0:00:14.3]} 36... b4 {[%clk 0:00:25.6]} 37. Bc4
{[%clk 0:00:14.1]} 37... Nc1 {[%clk 0:00:18]} 38. Rxb4 {[%clk 0:00:13.5]} 38...
Rc5 {[%clk 0:00:18.1]} 39. Kf1 {[%clk 0:00:09.8]} 39... Ra5 {[%clk 0:00:12]} 40.
Ke1 {[%clk 0:00:07.9]} 40... Ra1 {[%clk 0:00:11]} 41. Kd2 {[%clk 0:00:08.3]}
41... Rb1 {[%clk 0:00:03.1]} 42. Kc2 {[%clk 0:00:05.9]} 42... Ra1 {[%clk
0:00:03.3]} 43. Rb6+ {[%clk 0:00:05.3]} 43... Kf5 {[%clk 0:00:02.8]} 44. Ra6
{[%clk 0:00:02.5]} 44... Rxa6 {[%clk 0:00:01.9]} 45. Bxa6 {[%clk 0:00:03.4]}
45... Na2 {[%clk 0:00:02.2]} 46. Kb3 {[%clk 0:00:03.7]} 46... Nc1+ {[%clk
0:00:02.5]} 47. Kc3 {[%clk 0:00:03.5]} 47... Na2+ {[%clk 0:00:02.9]} 48. Kc4
{[%clk 0:00:03.9]} 48... Ke5 {[%clk 0:00:02.5]} 49. b4 {[%clk 0:00:04.2]} 49...
Nc1 {[%clk 0:00:02.2]} 50. Kc5 {[%clk 0:00:04.3]} 50... Nd3+ {[%clk 0:00:01.4]}
51. Bxd3 {[%clk 0:00:02.6]} 51... Ke6 {[%clk 0:00:01.1]} 52. Kc6 {[%clk
0:00:03.1]} 52... Ke5 {[%clk 0:00:01.1]} 53. b5 {[%clk 0:00:04]} 53... f5 {[%clk
0:00:01.1]} 54. b6 {[%clk 0:00:04.6]} 1-0

[Event "*** SCC Grand Prix: Titled Tuesday Blitz"]
[Site "Chess.com"]
[Date "2020.09.29"]
[Round "2"]
[White "TC2304"]
[Black "Willychess95"]
[Result "1-0"]
[WhiteElo "2303"]
[BlackElo "2525"]
[TimeControl "180+1"]
[EndTime "10:18:21 PDT"]
[Termination "TC2304 won by checkmate"]

1. d4 {[%clk 0:03:00.9]} 1... Nf6 {[%clk 0:02:59.3]} 2. Bg5 {[%clk 0:03:00.7]}
2... e6 {[%clk 0:02:59.2]} 3. e4 {[%clk 0:03:00.5]} 3... h6 {[%clk 0:02:59]} 4.
Bxf6 {[%clk 0:03:00.6]} 4... Qxf6 {[%clk 0:02:59.9]} 5. c3 {[%clk 0:03:00.8]}
5... d5 {[%clk 0:02:59.8]} 6. Nd2 {[%clk 0:03:00.3]} 6... c5 {[%clk 0:02:59]} 7.
Ngf3 {[%clk 0:03:00.1]} 7... Nc6 {[%clk 0:02:58.4]} 8. Bb5 {[%clk 0:03:00.6]}
8... Bd7 {[%clk 0:02:58.3]} 9. O-O {[%clk 0:02:59.6]} 9... cxd4 {[%clk
0:02:57.9]} 10. Nxd4 {[%clk 0:02:59.2]} 10... Be7 {[%clk 0:02:33.1]} 11. exd5
{[%clk 0:02:56.2]} 11... exd5 {[%clk 0:02:34]} 12. N2b3 {[%clk 0:02:52.7]} 12...
O-O {[%clk 0:02:32.9]} 13. Re1 {[%clk 0:02:53]} 13... Bd6 {[%clk 0:02:29.4]} 14.
Qf3 {[%clk 0:02:39.2]} 14... Qg5 {[%clk 0:02:23.1]} 15. g3 {[%clk 0:02:24.5]}
15... Rad8 {[%clk 0:02:08.3]} 16. h4 {[%clk 0:02:18.3]} 16... Qg6 {[%clk
0:02:03.6]} 17. Rab1 {[%clk 0:01:54.4]} 17... Bb8 {[%clk 0:01:42.6]} 18. Bd3
{[%clk 0:01:54.1]} 18... Qd6 {[%clk 0:01:39.6]} 19. Rbd1 {[%clk 0:01:37.5]}
19... Ne5 {[%clk 0:01:38]} 20. Qg2 {[%clk 0:01:29.8]} 20... Rfe8 {[%clk
0:01:31.1]} 21. Bf5 {[%clk 0:01:25.7]} 21... Bxf5 {[%clk 0:01:24.6]} 22. Nxf5
{[%clk 0:01:25.4]} 22... Qf6 {[%clk 0:01:25.5]} 23. Nbd4 {[%clk 0:01:22.4]}
23... g6 {[%clk 0:01:21.8]} 24. Ne3 {[%clk 0:01:20.2]} 24... Qd6 {[%clk
0:01:07.2]} 25. Nf3 {[%clk 0:01:13]} 25... Qc5 {[%clk 0:00:54.3]} 26. Nxe5
{[%clk 0:01:09.7]} 26... Rxe5 {[%clk 0:00:54.6]} 27. Ng4 {[%clk 0:01:06]} 27...
Rxe1+ {[%clk 0:00:49.9]} 28. Rxe1 {[%clk 0:01:06.3]} 28... h5 {[%clk 0:00:48.8]}
29. Nf6+ {[%clk 0:00:59.2]} 29... Kg7 {[%clk 0:00:49.2]} 30. Qf3 {[%clk
0:00:56.7]} 30... d4 {[%clk 0:00:49.4]} 31. Ne8+ {[%clk 0:00:40.3]} 31... Kf8
{[%clk 0:00:45.7]} 32. Qf6 {[%clk 0:00:39.2]} 32... Qe5 {[%clk 0:00:26.5]} 33.
Rxe5 {[%clk 0:00:32.5]} 33... Bxe5 {[%clk 0:00:27.4]} 34. Qxe5 {[%clk
0:00:29.4]} 34... d3 {[%clk 0:00:27.2]} 35. Qe1 {[%clk 0:00:13.2]} 35... d2
{[%clk 0:00:27.1]} 36. Qd1 {[%clk 0:00:11.6]} 36... Kxe8 {[%clk 0:00:27.7]} 37.
Kf1 {[%clk 0:00:11.7]} 37... f6 {[%clk 0:00:25.8]} 38. Ke2 {[%clk 0:00:11.6]}
38... Kf8 {[%clk 0:00:25.6]} 39. c4 {[%clk 0:00:08.3]} 39... g5 {[%clk
0:00:24.6]} 40. b4 {[%clk 0:00:07.4]} 40... Ke7 {[%clk 0:00:23.6]} 41. a4 {[%clk
0:00:07.2]} 41... Rd4 {[%clk 0:00:23.7]} 42. Qxd2 {[%clk 0:00:07]} 42... Rxd2+
{[%clk 0:00:23.7]} 43. Kxd2 {[%clk 0:00:07.9]} 43... Ke6 {[%clk 0:00:24.3]} 44.
Kd3 {[%clk 0:00:07.6]} 44... Ke5 {[%clk 0:00:24.4]} 45. Ke3 {[%clk 0:00:07.5]}
45... b6 {[%clk 0:00:20.7]} 46. f4+ {[%clk 0:00:07.3]} 46... gxf4+ {[%clk
0:00:19.2]} 47. gxf4+ {[%clk 0:00:06.8]} 47... Kf5 {[%clk 0:00:20.1]} 48. Kf3
{[%clk 0:00:07.1]} 48... a5 {[%clk 0:00:19.7]} 49. bxa5 {[%clk 0:00:04.8]} 49...
bxa5 {[%clk 0:00:19.2]} 50. c5 {[%clk 0:00:05.3]} 50... Ke6 {[%clk 0:00:19.5]}
51. Ke4 {[%clk 0:00:06]} 51... Kd7 {[%clk 0:00:19.2]} 52. Kd5 {[%clk 0:00:05.6]}
52... f5 {[%clk 0:00:17.9]} 53. c6+ {[%clk 0:00:04.4]} 53... Kc7 {[%clk
0:00:18.8]} 54. Kc5 {[%clk 0:00:04.9]} 54... Kc8 {[%clk 0:00:19.1]} 55. Kb6
{[%clk 0:00:04.4]} 55... Kb8 {[%clk 0:00:19.7]} 56. Kxa5 {[%clk 0:00:04.9]}
56... Kc7 {[%clk 0:00:19.9]} 57. Kb5 {[%clk 0:00:05.4]} 57... Kd6 {[%clk
0:00:20.5]} 58. Kb6 {[%clk 0:00:05.3]} 58... Kd5 {[%clk 0:00:21.1]} 59. c7
{[%clk 0:00:05.8]} 59... Ke4 {[%clk 0:00:22]} 60. c8=Q {[%clk 0:00:06.7]} 60...
Kxf4 {[%clk 0:00:22.6]} 61. a5 {[%clk 0:00:07.3]} 61... Kg4 {[%clk 0:00:23.1]}
62. a6 {[%clk 0:00:07.6]} 62... Kxh4 {[%clk 0:00:23.9]} 63. a7 {[%clk
0:00:08.2]} 63... f4 {[%clk 0:00:24.6]} 64. a8=Q {[%clk 0:00:08.8]} 64... f3
{[%clk 0:00:25.5]} 65. Qd8+ {[%clk 0:00:07.7]} 65... Kg4 {[%clk 0:00:25.5]} 66.
Qg8+ {[%clk 0:00:07.6]} 66... Kf4 {[%clk 0:00:25.6]} 67. Qgf8+ {[%clk
0:00:05.9]} 67... Ke5 {[%clk 0:00:26.5]} 68. Qfxf3 {[%clk 0:00:05.3]} 68... Kd4
{[%clk 0:00:26.1]} 69. Qae4# {[%clk 0:00:05.6]} 1-0

[Event "*** SCC Grand Prix: Titled Tuesday Blitz"]
[Site "Chess.com"]
[Date "2020.09.29"]
[Round "2"]
[White "anon569"]
[Black "awesomevishesh"]
[Result "0-1"]
[WhiteElo "2231"]
[BlackElo "2431"]
[TimeControl "180+1"]
[EndTime "10:18:23 PDT"]
[Termination "awesomevishesh won by resignation"]

1. e4 {[%clk 0:03:00.9]} 1... c5 {[%clk 0:02:59.8]} 2. Nf3 {[%clk 0:03:01.4]}
2... d6 {[%clk 0:03:00]} 3. d4 {[%clk 0:03:02]} 3... cxd4 {[%clk 0:03:00.6]} 4.
Qxd4 {[%clk 0:03:01.3]} 4... Nf6 {[%clk 0:02:59.2]} 5. Nc3 {[%clk 0:03:00.4]}
5... Nc6 {[%clk 0:02:56.6]} 6. Bb5 {[%clk 0:03:00]} 6... Bd7 {[%clk 0:02:53.2]}
7. Bxc6 {[%clk 0:02:59.3]} 7... Bxc6 {[%clk 0:02:53.3]} 8. Bg5 {[%clk
0:02:52.9]} 8... e6 {[%clk 0:02:53]} 9. O-O-O {[%clk 0:02:51.8]} 9... Be7 {[%clk
0:02:52]} 10. Qd3 {[%clk 0:02:51.5]} 10... O-O {[%clk 0:02:41.3]} 11. Nd4 {[%clk
0:02:36.6]} 11... Rc8 {[%clk 0:01:47]} 12. f4 {[%clk 0:02:29.8]} 12... Qa5
{[%clk 0:01:14.3]} 13. h4 {[%clk 0:02:14.5]} 13... a6 {[%clk 0:00:49.2]} 14. g4
{[%clk 0:01:57.7]} 14... Rfd8 {[%clk 0:00:39]} 15. Bxf6 {[%clk 0:01:48.2]} 15...
Bxf6 {[%clk 0:00:38.6]} 16. g5 {[%clk 0:01:48.5]} 16... Bxd4 {[%clk 0:00:34.4]}
17. Qxd4 {[%clk 0:01:48.1]} 17... b5 {[%clk 0:00:23.9]} 18. Kb1 {[%clk
0:01:37.8]} 18... b4 {[%clk 0:00:23.3]} 19. Ne2 {[%clk 0:01:36.7]} 19... e5
{[%clk 0:00:18.6]} 20. Qe3 {[%clk 0:01:12.4]} 20... exf4 {[%clk 0:00:17.4]} 21.
Nxf4 {[%clk 0:01:06]} 21... Qe5 {[%clk 0:00:17.1]} 22. Rhe1 {[%clk 0:01:04.1]}
22... a5 {[%clk 0:00:14]} 23. Nd5 {[%clk 0:00:58.6]} 23... Re8 {[%clk
0:00:13.3]} 24. Qg1 {[%clk 0:00:47.2]} 24... Bxd5 {[%clk 0:00:06]} 25. Rxd5
{[%clk 0:00:44.2]} 25... Qf4 {[%clk 0:00:05.9]} 26. h5 {[%clk 0:00:39.5]} 26...
Rxe4 {[%clk 0:00:04.9]} 27. Rc1 {[%clk 0:00:30.2]} 27... Rce8 {[%clk 0:00:03.9]}
28. g6 {[%clk 0:00:30.1]} 28... fxg6 {[%clk 0:00:02.7]} 29. hxg6 {[%clk
0:00:30.4]} 29... h6 {[%clk 0:00:03.3]} 30. Rdd1 {[%clk 0:00:12.8]} 30... Qh4
{[%clk 0:00:03]} 31. Qb6 {[%clk 0:00:11.7]} 31... Qf6 {[%clk 0:00:02.9]} 32.
Rxd6 {[%clk 0:00:10.6]} 32... Qf5 {[%clk 0:00:02.8]} 33. Rdd1 {[%clk 0:00:09.1]}
33... Re2 {[%clk 0:00:02.5]} 34. Qa6 {[%clk 0:00:08.6]} 34... R2e6 {[%clk
0:00:02.4]} 35. Qc4 {[%clk 0:00:08.5]} 35... Qxg6 {[%clk 0:00:02.4]} 36. Rg1
{[%clk 0:00:07.7]} 36... Qf7 {[%clk 0:00:02.5]} 37. Qb5 {[%clk 0:00:05.7]} 37...
Rf6 {[%clk 0:00:02.2]} 38. Qd3 {[%clk 0:00:05.6]} 38... Rf8 {[%clk 0:00:02.3]}
39. Qg3 {[%clk 0:00:05.3]} 39... Rf3 {[%clk 0:00:02.1]} 40. Qe5 {[%clk 0:00:05]}
40... a4 {[%clk 0:00:01.6]} 41. Qd4 {[%clk 0:00:04.7]} 41... b3 {[%clk
0:00:01.3]} 42. cxb3 {[%clk 0:00:04.8]} 42... axb3 {[%clk 0:00:01.8]} 43. a3
{[%clk 0:00:05.2]} 43... Qf5+ {[%clk 0:00:01.7]} 44. Ka1 {[%clk 0:00:05.5]}
44... Qf6 {[%clk 0:00:02.1]} 45. Qc4+ {[%clk 0:00:05]} 45... Kh8 {[%clk
0:00:02.4]} 46. Rb1 {[%clk 0:00:04.7]} 46... Rf2 {[%clk 0:00:02.8]} 47. Qb4
{[%clk 0:00:04.8]} 47... Rf3 {[%clk 0:00:02.9]} 48. Rgc1 {[%clk 0:00:04.7]}
48... Ra8 {[%clk 0:00:02.9]} 49. Qc5 {[%clk 0:00:04.3]} 49... Kh7 {[%clk
0:00:02.2]} 50. Rd1 {[%clk 0:00:04.1]} 50... Qf5 {[%clk 0:00:01.5]} 51. Rd4
{[%clk 0:00:03.7]} 51... Qxc5 {[%clk 0:00:01.2]} 52. Re4 {[%clk 0:00:01.1]}
52... Rxa3+ {[%clk 0:00:01.9]} 0-1